fUST/lending_fUST_20250618
["ID","MTS","AMOUNT","RATE_DAILY","PERIOD"]
[366319475,1750183885418,-1986.44,0.00024328,6]
[366319476,1750183885428,-491.1,0.00024328,6]
[366319477,1750183885438,-1822.09,0.00024328,6]
[366319478,1750183885449,-2564.14,0.00024328,6]
[366319479,1750183885459,-666.07,0.00024328,6]
[366319480,1750183885468,-9034.17,0.00024328,6]
[366319481,1750183885478,-835.98,0.00024328,6]
[366319482,1750183885488,-748.19,0.00024328,6]
[366319483,1750183885497,-522.02,0.00024328,6]
[366319484,1750183885507,-1297.48,0.00024328,6]
[366319485,1750183885517,-2238.85,0.00024328,6]
[366319486,1750183885527,-6152.94,0.00024328,6]
[366319487,1750183885537,-530.82,0.00024328,6]
[366319488,1750183885547,-461.84,0.00024328,6]
[366319489,1750183885557,-975.18,0.00024328,6]
[366319490,1750183885567,-533.36,0.00024328,6]
[366319491,1750183885577,-1118.9,0.00024328,6]
[366319492,1750183885586,-2996.81,0.00024328,6]
[366319493,1750183885596,-2719.07,0.00024328,6]
[366319494,1750183885605,-2147.82,0.00024328,6]
[366319495,1750183885615,-732.3,0.00024328,6]
[366319496,1750183885625,-546.66,0.00024328,6]
[366319497,1750183885635,-1701.19,0.00024328,6]
[366319498,1750183885644,-3292.96,0.00024328,6]
[366319499,1750183885654,-599.06152968,0.00024328,6]
[366319500,1750183885664,-1131.49,0.00024328,6]
[366319501,1750183885673,-1230.25,0.00024328,6]
[366319502,1750183885683,-1447.09,0.00024328,6]
[366319503,1750183885693,-997.03,0.00024328,6]
[366319504,1750183885702,-2693.89,0.00024328,6]
[366319505,1750183885712,-599.07,0.00024328,6]
[366319506,1750183885722,-652.02447979,0.00024328,6]
[366319507,1750183885910,-667.27857388,0.00024328,6]
[366319508,1750183885931,-460.0,0.00022027,6]
[366319509,1750183885941,-1573.04,0.00023232,6]
[366319510,1750183885951,-2013.34694633,0.00024328,6]
[366319511,1750183885960,-532.08,0.00024328,6]
[366319512,1750183885970,-1084.84,0.00024328,6]
[366319513,1750183885979,-6210.09421912,0.00024328,6]
[366319514,1750183885991,-427.97589205,0.00024328,6]
[366319515,1750183886276,-460.0,0.00021917,6]
[366319516,1750183886286,-460.0,0.00022027,6]
[366319517,1750183886296,-460.0,0.00022136,6]
[366319518,1750183886306,-460.0,0.00022136,6]
[366319519,1750183886316,-460.0,0.00022136,6]
[366319520,1750183886327,-460.0,0.00022246,6]
[366319521,1750183886337,-460.0,0.00022246,6]
[366319522,1750183886347,-460.0,0.00022356,6]
[366319523,1750183886357,-460.0,0.00022465,6]
[366319524,1750183886367,-1007.03,0.00022575,6]
[366319525,1750183886376,-460.0,0.00022575,6]
[366319526,1750183886386,-1007.03,0.00022684,6]
[366319527,1750183886395,-460.0,0.00022684,6]
[366319528,1750183886404,-1007.03,0.00022794,6]
[366319529,1750183886415,-1007.03,0.00022904,6]
[366319530,1750183886424,-1007.03,0.00023013,6]
[366319531,1750183886435,-406.0,0.00023114,2]
[366319532,1750183886444,-1472.35,0.00023123,6]
[366319533,1750183886453,-1007.03,0.00023123,6]
[366319534,1750183886463,-1472.35,0.00023232,6]
[366319535,1750183886472,-1007.03,0.00023232,6]
[366319536,1750183886482,-1573.04,0.00023342,6]
[366319537,1750183886491,-1472.35,0.00023342,6]
[366319538,1750183886500,-1007.03,0.00023342,6]
[366319539,1750183886510,-1573.04,0.00023452,6]
[366319540,1750183886518,-1472.35,0.00023452,6]
[366319541,1750183886527,-1007.03,0.00023452,6]
[366319542,1750183886537,-1573.04,0.00023561,6]
[366319543,1750183886546,-1472.35,0.00023561,6]
[366319544,1750183886555,-1573.04,0.00023671,6]
[366319545,1750183886565,-1472.35,0.00023671,6]
[366319546,1750183886574,-1573.04,0.0002378,6]
[366319547,1750183886583,-1472.35,0.0002378,6]
[366319548,1750183886593,-1573.04,0.0002389,6]
[366319549,1750183886602,-1472.35,0.0002389,6]
[366319550,1750183886612,-1573.04,0.00024,6]
[366319551,1750183886621,-1472.35,0.00024,6]
[366319552,1750183886630,-1573.04,0.00024109,6]
[366319553,1750183886640,-1531.65988883,0.00024328,6]
[366319554,1750183886649,-709.25,0.00024328,6]
[366319555,1750183886658,-482.2,0.0002433,7]
[366319556,1750183886667,-500.0,0.00024332,2]
[366319557,1750183886677,-500.0,0.00024337,2]
[366319558,1750183886688,-1427.17308239,0.00024348,11]
[366319559,1750183886698,-2125.97,0.00024356,2]
[366319560,1750183886708,-151.0,0.00024356,7]
[366319561,1750183886717,-151.0,0.00024356,7]
[366319562,1750183886727,-2500.0,0.00024364,2]
[366319563,1750183886736,-2500.0,0.00024364,2]
[366319564,1750183886746,-525.90755015,0.00024364,2]
[366319565,1750183886757,-3000.0,0.00024364,2]
[366319566,1750183886767,-500.0,0.00024371,2]
[366319567,1750183886777,-500.0,0.00024373,2]
[366319568,1750183886786,-2125.97,0.00024383,2]
[366319569,1750183886796,-151.0,0.00024383,7]
[366319570,1750183886805,-151.0,0.00024383,7]
[366319571,1750183886815,-233.259426,0.00024398,7]
[366319572,1750183886824,-151.0,0.00024398,7]
[366319573,1750183886834,-151.0,0.00024403,7]
[366319574,1750183886844,-2125.97,0.0002441,2]
[366319575,1750183886854,-180.544128,0.0002441,7]
[366319576,1750183886864,-206.0,0.0002442,2]
[366319577,1750183886873,-500.0,0.00024431,2]
[366319578,1750183886883,-2125.97,0.00024438,2]
[366319579,1750183886892,-151.0,0.00024438,7]
[366319580,1750183886902,-547.37818804,0.00024438,6]
[366319581,1750183886912,-516.51550322,0.00024438,6]
[366319582,1750183886922,-518.78665601,0.00024438,6]
[366319583,1750183886931,-918.3715855,0.00024438,6]
[366319584,1750183886945,-1120.95735746,0.00024438,2]
[366319585,1750183886955,-478.15427546,0.00024438,6]
[366319586,1750183886964,-531.12032067,0.00024438,6]
[366319587,1750183886973,-1048.48559468,0.00024438,6]
[366319588,1750183886984,-525.55453544,0.00024438,6]
[366319589,1750183886993,-506.94158786,0.00024438,6]
[366319590,1750183887003,-571.36665477,0.00024438,6]
[366319591,1750183887013,-869.88,0.00024438,6]
[366319592,1750183887023,-331.79857136,0.00024438,6]
[366319593,1750183887033,-475.94615103,0.00024438,6]
[366319594,1750183887043,-1798.47416231,0.00024438,6]
[366319595,1750183887056,-735.04043018,0.00024438,6]
[366319596,1750183887066,-570.77589895,0.00024438,6]
[366319597,1750183887076,-833.65429006,0.00024438,6]
[366319598,1750183887087,-1529.15806493,0.00024438,6]
[366319599,1750183887097,-1872.10046605,0.00024438,6]
[366319600,1750183887107,-920.79123268,0.00024438,6]
[366319601,1750183887274,-2538.98745725,0.00024438,6]
[366319602,1750183887286,-582.94,0.00024438,6]
[366319603,1750183887296,-1732.90449293,0.00024438,6]
[366319604,1750183887306,-618.54418328,0.00024438,6]
[366319605,1750183887316,-596.63726575,0.00024438,6]
[366319606,1750183887326,-482.03254245,0.00024438,6]
[366319607,1750183887336,-1910.97798594,0.00024438,6]
[366319608,1750183887346,-1647.26052897,0.00024438,6]
[366319609,1750183887356,-4547.84596182,0.00024438,6]
[366319610,1750183887366,-1552.12639231,0.00024438,6]
[366319611,1750183887375,-4019.60925463,0.00024438,6]
[366319612,1750183887389,-1845.88047257,0.00024438,6]
[366319613,1750183887398,-1377.24713266,0.00024438,6]
[366319614,1750183887723,-460.0,0.00021917,6]
[366319615,1750183887733,-230.13,0.00022027,6]
[366319616,1750183887743,-245.28,0.00022356,6]
[366319617,1750183887753,-2013.96201676,0.00022574,2]
[366319618,1750183887763,-460.0,0.00022794,6]
[366319619,1750183887772,-460.0,0.00022904,6]
[366319620,1750183887782,-460.0,0.00023013,6]
[366319621,1750183887792,-460.0,0.00023123,6]
[366319622,1750183887802,-460.0,0.00023232,6]
[366319623,1750183887811,-460.0,0.00023342,6]
[366319624,1750183887821,-356.87,0.00023452,6]
[366319625,1750183887830,-1007.03,0.00023561,6]
[366319626,1750183887840,-1007.03,0.00023671,6]
[366319627,1750183887849,-1007.03,0.0002378,6]
[366319628,1750183887859,-1007.03,0.0002389,6]
[366319629,1750183887869,-1007.03,0.00024,6]
[366319630,1750183887878,-1472.35,0.00024109,6]
[366319631,1750183887888,-1007.03,0.00024109,6]
[366319632,1750183887899,-1573.04,0.00024219,6]
[366319633,1750183887909,-1472.35,0.00024219,6]
[366319634,1750183887919,-1007.03,0.00024219,6]
[366319635,1750183887929,-1573.04,0.00024328,6]
[366319636,1750183887939,-1472.35,0.00024328,6]
[366319637,1750183887950,-1007.03,0.00024328,6]
[366319638,1750183887959,-275.88466219,0.00024438,6]
[366319639,1750183887969,-5369.52773386,0.00024438,6]
[366319640,1750183887979,-650.92242384,0.00024438,6]
[366319641,1750183887990,-1986.49286891,0.00024438,6]
[366319642,1750183888000,-491.12455305,0.00024438,6]
[366319643,1750183888011,-1822.2979856,0.00024438,6]
[366319644,1750183888021,-2564.34457286,0.00024438,6]
[366319645,1750183888031,-666.23798145,0.00024438,6]
[366319646,1750183888041,-9034.33539107,0.00024438,6]
[366319647,1750183888053,-836.01021943,0.00024438,6]
[366319648,1750183888063,-748.35579491,0.00024438,6]
[366319649,1750183888073,-522.03547823,0.00024438,6]
[366319650,1750183888082,-1297.6,0.00024438,6]
[366319651,1750183888093,-2238.97450979,0.00024438,6]
[366319652,1750183888102,-6153.01012247,0.00024438,6]
[366319653,1750183888112,-530.89134005,0.00024438,6]
[366319654,1750183888123,-462.07267861,0.00024438,6]
[366319655,1750183888132,-975.20945374,0.00024438,6]
[366319656,1750183888142,-533.55967065,0.00024438,6]
[366319657,1750183888158,-1118.9291092,0.00024438,6]
[366319658,1750183888168,-2996.92711279,0.00024438,6]
[366319659,1750183888178,-2719.20387099,0.00024438,6]
[366319660,1750183888189,-2147.82369447,0.00024438,6]
[366319661,1750183888199,-732.52574842,0.00024438,6]
[366319662,1750183888209,-546.80857438,0.00024438,6]
[366319663,1750183888218,-1701.41847125,0.00024438,6]
[366319664,1750183888228,-3293.11,0.00024438,6]
[366319665,1750183888238,-4.8694496,0.00024438,6]
[366319666,1750184015731,374.474832,0.00013699,2]
[366319670,1750184974670,367.122106,0.00013699,2]
[366319671,1750184975054,-219.25135374,0.00018711,2]
[366319716,1750185032299,-4780.74864626,0.00018711,2]
[366319718,1750185032310,-150.0,0.000189,2]
[366319720,1750185032320,-207.4,0.00019988,2]
[366319723,1750185032330,-300.0,0.00019999,2]
[366319726,1750185032340,-327.93649217,0.00019999,2]
[366320261,1750185037994,-872.06350783,0.00019999,2]
[366320263,1750185038004,-792.94556754,0.0002,2]
[366320395,1750185040227,-1514.85721613,0.0002,2]
[366320397,1750185040240,-462.51669404,0.0002,2]
[366320403,1750185040282,-6545.9901986,0.0002,2]
[366320694,1750185043093,-1647.59102257,0.0002,2]
[366320696,1750185043103,-4609.23722143,0.0002,2]
[366320698,1750185043113,-367.122106,0.00020187,2]
[366320701,1750185043124,-180.287375,0.00020471,2]
[366320703,1750185043134,-2919.8307836,0.00020471,2]
[366320705,1750185043144,-1000.0,0.00020847,2]
[366320707,1750185043155,-289.4,0.00020893,2]
[366320709,1750185043166,-534.67478022,0.000209,4]
[366320711,1750185043176,-534.67477998,0.00021072,4]
[366320713,1750185043186,-534.67477998,0.00021245,4]
[366320715,1750185043197,-215.0738,0.00021357,2]
[366320717,1750185043207,-534.67477998,0.00021417,5]
[366320719,1750185043217,-300.0,0.00021589,2]
[366320721,1750185043228,-534.67477998,0.0002159,5]
[366320724,1750185043239,-160.0,0.00021756,3]
[366320727,1750185043249,-160.0,0.00021798,2]
[366320730,1750185043260,-500.0,0.00021916,2]
[366320733,1750185043270,-500.0,0.00021916,2]
[366320736,1750185043282,-500.0,0.00021916,2]
[366320739,1750185043293,-500.0,0.00021916,2]
[366320742,1750185043303,-330.97367437,0.00021916,2]
[366320745,1750185043315,-201.811,0.00021916,2]
[366320749,1750185043326,-470.0,0.00021917,6]
[366320752,1750185043337,-460.0,0.00021917,6]
[366320755,1750185043347,-461.23608387,0.00021917,6]
[366320757,1750185043358,-525.36,0.00021917,6]
[366320759,1750185043368,-460.0,0.00021917,6]
[366320761,1750185043378,-460.0,0.00021917,6]
[366320763,1750185043390,-644.66,0.00021917,6]
[366320765,1750185043404,-460.0,0.00021917,2]
[366320767,1750185043414,-489.3,0.00021917,6]
[366320769,1750185043425,-460.0,0.00021917,6]
[366320771,1750185043437,-552.51037577,0.00021917,6]
[366320773,1750185043448,-409.96517053,0.00021917,6]
[366320775,1750185043459,-545.85,0.00021917,6]
[366320777,1750185043470,-277.3440546,0.00021917,6]
[366320779,1750185043480,-460.0,0.00021917,6]
[366320781,1750185043490,-506.77,0.00021917,6]
[366320783,1750185043500,-571.29,0.00021917,6]
[366320785,1750185043510,-460.0,0.00021917,6]
[366320787,1750185043520,-460.0,0.00021917,6]
[366320789,1750185043530,-296.54173381,0.00021917,6]
[366320791,1750185043541,-569.99197761,0.00021917,6]
[366320793,1750185043552,-430.0,0.00021917,6]
[366320796,1750185043563,-460.0,0.00021917,6]
[366320798,1750185043574,-175.2761961,0.00021917,6]
[366320801,1750185043593,-131.9438039,0.00021917,6]
[366320803,1750185043603,-475.9,0.00021917,6]
[366320805,1750185043614,-494.07653692,0.00021917,6]
[366321209,1750186047711,4500.0,0.00018,2]
[366321214,1750186140295,387.397838,0.00013699,2]
[366321227,1750186232236,-207.4,0.00019911,2]
[366321228,1750186232246,-5000.0,0.00019923,2]
[366321229,1750186232256,-192.98287752,0.00020087,2]
[366321230,1750186232266,-387.397838,0.00020187,2]
[366321231,1750186232275,-168.0,0.00020205,2]
[366321232,1750186232285,-180.55616,0.00020489,2]
[366321233,1750186232295,-168.0,0.00020521,2]
[366321234,1750186232304,-168.0,0.00020586,2]
[366321235,1750186232314,-500.0,0.00020602,2]
[366321236,1750186232324,-540.70718908,0.000209,4]
[366321237,1750186232333,-168.0,0.00020973,2]
[366321238,1750186232343,-160.0,0.00021,2]
[366321239,1750186232353,-354.68489756,0.00021072,4]
[366321240,1750186232427,-186.02229124,0.00021072,4]
[366321241,1750186232437,-168.0,0.00021124,2]
[366321242,1750186232447,-320.0,0.00021154,2]
[366321243,1750186232456,-540.7071888,0.00021245,4]
[366321244,1750186232465,-215.0738,0.0002128,2]
[366321245,1750186232475,-540.7071888,0.00021417,5]
[366321246,1750186232485,-872.0,0.00021438,2]
[366321247,1750186232495,-300.0,0.00021439,2]
[366321248,1750186232505,-638.0,0.0002144,2]
[366321249,1750186232515,-320.0,0.00021456,2]
[366321250,1750186232524,-320.0,0.00021525,2]
[366321251,1750186232534,-168.0,0.00021588,2]
[366321252,1750186232544,-540.7071888,0.0002159,5]
[366321253,1750186232553,-540.7071888,0.00021762,5]
[366321254,1750186232562,-192.98287751,0.00021803,2]
[366321255,1750186232572,-300.0,0.00021806,2]
[366321256,1750186232582,-201.407,0.00021807,2]
[366321257,1750186232592,-168.0,0.00021852,2]
[366321258,1750186232602,-8649.44759,0.000219,5]
[366321259,1750186232612,-5000.0,0.00021903,2]
[366321260,1750186232622,-500.0,0.00021903,2]
[366321262,1750186232632,-626.47819973,0.00021903,2]
[366321264,1750186232641,-823.72,0.00021907,10]
[366321266,1750186232651,-258.99707493,0.00021914,2]
[366321267,1750186232660,-500.0,0.00021914,2]
[366321269,1750186232669,-500.0,0.00021914,2]
[366321271,1750186232679,-500.0,0.00021914,2]
[366321273,1750186232689,-500.0,0.00021914,2]
[366321275,1750186232698,-500.0,0.00021914,2]
[366321277,1750186232707,-399.10076954,0.00021914,2]
[366321278,1750186232716,-500.0,0.00021914,2]
[366321280,1750186232725,-500.0,0.00021914,2]
[366321282,1750186232735,-500.0,0.00021914,2]
[366321284,1750186232744,-500.0,0.00021914,2]
[366321286,1750186232754,-500.0,0.00021914,2]
[366321288,1750186232763,-500.0,0.00021914,2]
[366321290,1750186232772,-500.0,0.00021914,2]
[366321292,1750186232782,-500.0,0.00021916,2]
[366321293,1750186232791,-500.0,0.00021916,2]
[366321295,1750186232803,-500.0,0.00021916,2]
[366321297,1750186232813,-500.0,0.00021916,2]
[366321299,1750186232824,-545.9819998,0.00021916,2]
[366321301,1750186232833,-500.0,0.00021916,2]
[366321303,1750186232845,-500.0,0.00021916,2]
[366321305,1750186232855,-500.0,0.00021916,2]
[366321307,1750186232864,-500.0,0.00021916,2]
[366321309,1750186232875,-500.0,0.00021916,2]
[366321311,1750186232884,-642.41112733,0.00021916,2]
[366321313,1750186232894,-500.0,0.00021916,2]
[366321315,1750186232903,-500.0,0.00021916,2]
[366321317,1750186232912,-500.0,0.00021916,2]
[366321318,1750186232922,-500.0,0.00021916,2]
[366321320,1750186232932,-500.0,0.00021916,2]
[366321322,1750186232942,-500.0,0.00021916,2]
[366321323,1750186232951,-500.0,0.00021916,2]
[366321324,1750186232961,-500.0,0.00021916,2]
[366321325,1750186232972,-500.0,0.00021916,2]
[366321326,1750186232981,-500.0,0.00021916,2]
[366321327,1750186232991,-500.0,0.00021916,2]
[366321328,1750186233002,-500.0,0.00021916,2]
[366321329,1750186233012,-500.0,0.00021916,2]
[366321330,1750186233022,-550.0,0.00021916,2]
[366321331,1750186233032,-885.27777638,0.00021917,6]
[366321332,1750186233042,-460.0,0.00021917,6]
[366321333,1750186233052,-287.35408526,0.00021917,6]
[366321334,1750186233062,-460.0,0.00021917,6]
[366321335,1750186233072,-403.0184,0.00021917,6]
[366321336,1750186233083,-460.0,0.00021917,6]
[366321337,1750186233093,-636.96,0.00021917,6]
[366321338,1750186233103,-430.0,0.00021917,6]
[366321339,1750186233114,-426.53492805,0.00021917,2]
[366321340,1750186233125,-295.99655748,0.00021917,2]
[366321341,1750186233136,-440.0,0.00021917,6]
[366321342,1750186233146,-440.0,0.00021917,6]
[366321343,1750186233156,-460.0,0.00021917,6]
[366321344,1750186233166,-460.0,0.00021917,6]
[366321345,1750186233179,-721.55743922,0.00021917,2]
[366321346,1750186233190,-460.0,0.00021917,2]
[366321347,1750186233200,-460.0,0.00021917,6]
[366321348,1750186233211,-393.8251541,0.00021917,6]
[366321349,1750186233221,-460.0,0.00021917,6]
[366321350,1750186233230,-541.39,0.00021917,6]
[366321351,1750186233240,-460.0,0.00021917,6]
[366321352,1750186233251,-460.0,0.00021917,6]
[366321353,1750186233261,-460.0,0.00021917,6]
[366321354,1750186233272,-392.43854041,0.00021917,6]
[366321355,1750186233282,-460.0,0.00021917,6]
[366321356,1750186233292,-460.0,0.00021917,6]
[366321357,1750186233302,-460.0,0.00021917,6]
[366321358,1750186233312,-460.0,0.00021917,6]
[366321359,1750186233322,-237.46854865,0.00021917,6]
[366321360,1750186233332,-460.0,0.00021917,6]
[366321361,1750186233342,-411.62163677,0.00021917,6]
[366321362,1750186233352,-141.71526203,0.00021917,6]
[366321389,1750186238120,-285.71,0.00020232,2]
[366321390,1750186238130,-500.0,0.00021914,2]
[366321391,1750186238140,-500.0,0.00021914,2]
[366321392,1750186238149,-500.0,0.00021914,2]
[366321393,1750186238159,-500.0,0.00021914,2]
[366321394,1750186238168,-500.0,0.00021914,2]
[366321395,1750186238178,-500.0,0.00021914,2]
[366321396,1750186238188,-500.0,0.00021914,2]
[366321397,1750186238198,-500.0,0.00021914,2]
[366321398,1750186238210,-500.0,0.00021914,2]
[366321399,1750186238220,-500.0,0.00021914,2]
[366321400,1750186238230,-500.0,0.00021914,2]
[366321401,1750186238240,-500.0,0.00021914,2]
[366321402,1750186238250,-318.28473797,0.00021917,6]
[366321403,1750186238259,-275.61790475,0.00021917,6]
[366321404,1750186238269,-460.0,0.00021917,6]
[366321405,1750186238278,-460.0,0.00021917,6]
[366321406,1750186238287,-460.0,0.00021917,6]
[366321407,1750186238297,-460.0,0.00021917,6]
[366321408,1750186238307,-152.19137071,0.00021917,6]
[366321409,1750186238316,-460.0,0.00021917,6]
[366321410,1750186238325,-159.78301553,0.00021917,6]
[366321411,1750186238335,-447.06430385,0.00021917,6]
[366321412,1750186238344,-152.41493749,0.00021917,6]
[366321413,1750186238354,-209.3569613,0.00021917,6]
[366321414,1750186238364,-460.0,0.00021917,6]
[366321415,1750186238373,-151.0,0.00021917,6]
[366321416,1750186238384,-460.0,0.00021917,6]
[366321417,1750186238394,-432.32519125,0.00021917,6]
[366321418,1750186238403,-460.0,0.00021917,6]
[366321419,1750186238412,-460.0,0.00021917,6]
[366321420,1750186238422,-460.0,0.00021917,6]
[366321421,1750186238431,-460.0,0.00021917,6]
[366321422,1750186238441,-460.0,0.00021917,6]
[366321423,1750186238451,-500.0,0.00021917,6]
[366321424,1750186238460,-500.0,0.00021917,6]
[366321425,1750186238470,-500.0,0.00021917,6]
[366321426,1750186238479,-460.0,0.00021917,6]
[366321427,1750186238489,-460.0,0.00021917,6]
[366321428,1750186238499,-460.0,0.00021917,6]
[366321429,1750186238509,-294.08747821,0.00021917,6]
[366321430,1750186238523,-447.99994809,0.00021917,6]
[366321431,1750186238533,-460.0,0.00021917,6]
[366321432,1750186238543,-460.0,0.00021917,6]
[366321433,1750186238553,-460.0,0.00021917,6]
[366321434,1750186238563,-460.0,0.00021917,6]
[366321435,1750186238573,-460.0,0.00021917,6]
[366321436,1750186238583,-460.0,0.00021917,6]
[366321437,1750186238594,-263.93283531,0.00021917,6]
[366321438,1750186238603,-460.0,0.00021917,6]
[366321439,1750186238613,-460.0,0.00021917,6]
[366321440,1750186238623,-460.0,0.00021917,6]
[366321441,1750186238632,-500.0,0.00021917,6]
[366321442,1750186238643,-560.26105564,0.00021917,6]
[366321443,1750186238653,-460.0,0.00021917,6]
[366321444,1750186238663,-430.0,0.00021917,6]
[366321445,1750186238673,-460.0,0.00021917,6]
[366321446,1750186238683,-586.32868557,0.00021917,6]
[366321447,1750186238692,-460.0,0.00021917,6]
[366321448,1750186238702,-460.0,0.00021917,6]
[366321449,1750186238711,-460.0,0.00021917,6]
[366321450,1750186238721,-460.0,0.00021917,6]
[366321451,1750186238730,-460.0,0.00021917,6]
[366321452,1750186238739,-460.0,0.00021917,6]
[366321453,1750186238749,-516.75080527,0.00021917,6]
[366321454,1750186238759,-843.34,0.00021917,6]
[366321455,1750186238768,-460.0,0.00021917,6]
[366321456,1750186238778,-460.0,0.00021917,6]
[366321457,1750186238787,-1243.03,0.00021917,6]
[366321458,1750186238797,-460.0,0.00021917,6]
[366321459,1750186238812,-981.59,0.00021917,6]
[366321460,1750186238821,-460.0,0.00021917,6]
[366321461,1750186238831,-460.0,0.00021917,6]
[366321462,1750186238840,-460.0,0.00021917,6]
[366321463,1750186238850,-616.05,0.00021917,6]
[366321464,1750186238860,-460.0,0.00021917,6]
[366321465,1750186238869,-245.0,0.00021917,6]
[366321466,1750186238879,-151.0,0.00021917,6]
[366321467,1750186238889,-491.51,0.00021917,6]
[366321468,1750186238898,-245.0,0.00021917,6]
[366321469,1750186238907,-460.0,0.00021917,6]
[366321470,1750186238917,-460.0,0.00021917,6]
[366321471,1750186238926,-523.92,0.00021917,6]
[366321472,1750186238935,-460.0,0.00021917,6]
[366321473,1750186238945,-460.0,0.00021917,6]
[366321474,1750186238954,-460.0,0.00021917,6]
[366321475,1750186238965,-460.0,0.00021917,6]
[366321476,1750186238974,-460.0,0.00021917,6]
[366321477,1750186238984,-460.0,0.00021917,6]
[366321478,1750186238993,-460.0,0.00021917,6]
[366321479,1750186239003,-1539.54,0.00021917,6]
[366321480,1750186239013,-460.0,0.00021917,6]
[366321481,1750186239023,-460.0,0.00021917,6]
[366321482,1750186239032,-460.0,0.00021917,6]
[366321483,1750186239042,-460.0,0.00021917,6]
[366321484,1750186239051,-460.0,0.00021917,6]
[366321485,1750186239061,-460.0,0.00021917,6]
[366321486,1750186239070,-460.0,0.00021917,6]
[366321487,1750186239079,-460.0,0.00021917,6]
[366321488,1750186239089,-460.0,0.00021917,6]
[366321489,1750186239098,-460.0,0.00021917,6]
[366321490,1750186239108,-1087.94,0.00021917,6]
[366321491,1750186239117,-460.0,0.00021917,6]
[366321492,1750186239126,-460.0,0.00021917,6]
[366321493,1750186239136,-151.0,0.00021917,6]
[366321494,1750186239146,-515.49,0.00021917,6]
[366321495,1750186239156,-151.0,0.00021917,6]
[366321496,1750186239165,-151.0,0.00021917,2]
[366321497,1750186239175,-460.0,0.00021917,6]
[366321498,1750186239184,-151.0,0.00021917,2]
[366321499,1750186239194,-460.0,0.00021917,6]
[366321500,1750186239204,-829.92,0.00021917,6]
[366321501,1750186239214,-680.52,0.00021917,6]
[366321502,1750186239224,-460.0,0.00021917,6]
[366321503,1750186239234,-417.4470544,0.00021917,6]
[366321504,1750186239243,-310.21763862,0.00021917,6]
[366321505,1750186239253,-500.0,0.00021917,3]
[366321506,1750186239263,-460.0,0.00021917,6]
[366321507,1750186239272,-460.0,0.00021917,6]
[366321508,1750186239282,-460.0,0.00021917,6]
[366321509,1750186239291,-460.0,0.00021917,6]
[366321510,1750186239301,-460.0,0.00021917,6]
[366321511,1750186239310,-457.65133276,0.00021917,6]
[366321512,1750186239320,-460.0,0.00021917,6]
[366321513,1750186239329,-460.0,0.00021917,6]
[366321514,1750186239339,-460.0,0.00021917,6]
[366321515,1750186239349,-460.0,0.00021917,6]
[366321516,1750186239359,-460.0,0.00021917,6]
[366321517,1750186239369,-590.42,0.00021917,6]
[366321518,1750186239379,-565.38,0.00021917,6]
[366321519,1750186239388,-460.0,0.00021917,6]
[366321520,1750186239397,-2587.69,0.00021917,6]
[366321521,1750186239406,-460.0,0.00021917,6]
[366321522,1750186239415,-469.15,0.00021917,6]
[366321523,1750186239424,-341.19534364,0.00021917,6]
[366321524,1750186239433,-774.55,0.00021917,6]
[366321525,1750186239443,-460.0,0.00021917,6]
[366321526,1750186239454,-460.0,0.00021917,6]